bitfinex-derivatives/quotes_ETHF0:USTF0_20250421
["timestamp","ask_amount","ask_price","bid_price","bid_amount"]
[1745223987204,9.32948774,1648.6,1648.5,40.8143]
[1745223989009,6.12168774,1648.6,1648.5,40.8143]
[1745223989309,9.32948774,1648.6,1648.5,40.8143]
[1745223993211,7.06548774,1648.6,1648.5,40.8143]
[1745223996017,7.06549304,1648.6,1648.5,40.8143]
[1745223996312,9.32949304,1648.6,1648.5,40.8143]
[1745223999116,7.06549304,1648.6,1648.5,40.8143]
[1745224005034,3.04809304,1648.6,1648.5,42.4818]
[1745224005232,1.41869304,1648.6,1648.5,43.3325]
[1745224005432,1.31590583,1648.6,1648.5,43.3325]
[1745224005632,1.41868807,1648.6,1648.5,43.3325]
[1745224005824,1.41868883,1648.6,1648.5,43.3325]
[1745224006128,4.62648883,1648.6,1648.5,43.3325]
[1745224006331,6.28278883,1648.6,1648.5,43.3325]
[1745224007631,1.41868883,1648.6,1648.5,43.3325]
[1745224007835,1.31590583,1648.6,1648.5,43.3325]
[1745224008934,4.62648942,1648.6,1648.5,40.8143]
[1745224009135,8.51248942,1648.6,1648.5,40.8143]
[1745224010232,8.40970583,1648.6,1648.5,40.8143]
[1745224010532,8.51249695,1648.6,1648.5,40.8143]
[1745224011934,8.40970583,1648.6,1648.5,40.8143]
[1745224012121,8.5124977,1648.6,1648.5,40.8143]
[1745224013833,1.21327,1648.4,1648.3,1.7386]
[1745224014026,8.43186187,1648.4,1648.3,1.7386]
[1745224014228,8.43186187,1648.4,1648.3,42.5386]
[1745224014533,10.03826187,1648.4,1648.3,42.5386]
[1745224014833,10.03826187,1648.4,1648.3,40.8]
[1745224015234,12.30226187,1648.4,1648.3,40.8]
[1745224016133,1.21334,1648.3,1648.2,2.5968]
[1745224016331,3.72283187,1648.3,1648.2,1.7279]
[1745224016728,3.72283187,1648.3,1648.2,42.5279]
[1745224017033,3.72284568,1648.3,1648.2,42.5279]
[1745224017234,5.98684568,1648.3,1648.2,42.5279]
[1745224018335,2.36680864,1648.3,1648.2,42.5279]
[1745224018639,2.264,1648.3,1648.2,43.4047]
[1745224018837,3.47734,1648.3,1648.2,43.4047]
[1745224019235,1.21334,1648.3,1648.2,45.6687]
[1745224021041,8.32913,1648.4,1648.2,45.6687]
[1745224021243,5.12133,1648.4,1648.3,2.5736]
[1745224021945,3.908,1648.4,1648.3,3.78694]
[1745224022242,3.908,1648.4,1648.3,6.05094]
[1745224022432,5.12127,1648.4,1648.3,4.8376]
[1745224022931,3.908,1648.4,1648.3,4.8376]
[1745224023143,3.908,1648.4,1648.3,6.05094]
[1745224023446,5.12127,1648.4,1648.3,4.8376]
[1745224023846,3.908,1648.4,1648.3,6.05094]
[1745224024747,3.908,1648.4,1648.3,11.05094]
[1745224025137,3.908,1648.4,1648.3,51.85094]
[1745224025842,4.01178583,1648.6,1648.5,1.21319]
[1745224026043,4.01178583,1648.6,1648.5,9.42099]
[1745224026344,0.10278583,1648.6,1648.5,9.42099]
[1745224026541,0.10278583,1648.6,1648.5,51.97849]
[1745224027146,0.10278583,1648.6,1648.5,54.24249]
[1745224028043,1.31590583,1648.6,1648.5,48.0293]
[1745224028247,3.57990583,1648.6,1648.5,46.97849]
[1745224029344,1.31590583,1648.6,1648.5,46.97849]
[1745224029946,0.10278583,1648.6,1648.5,46.97849]
[1745224034648,0.10278583,1648.6,1648.5,43.77069]
[1745224042248,0.10278583,1648.6,1648.5,49.65469]
[1745224045855,3.908,1648.8,1648.7,1.21305]
[1745224046453,4.92273912,1649.0,1648.7,1.21305]
[1745224046454,3.21473912,1649.0,1648.7,40.8]
[1745224046762,0.00693912,1649.0,1648.9,1.2129]
[1745224046948,0.00693912,1649.0,1648.9,3.6946]
[1745224047558,0.00693912,1649.0,1648.9,44.4946]
[1745224048148,1.73273912,1649.0,1648.9,44.4946]
[1745224048452,0.00693912,1649.0,1648.9,44.4946]
[1745224049654,0.8436,1649.2,1649.1,1.21275]
[1745224050050,2.5694,1649.2,1649.1,1.21275]
[1745224050359,4.7812,1649.3,1649.2,1.21268]
[1745224050857,6.4649,1649.3,1649.2,1.21268]
[1745224051249,6.4649,1649.3,1649.2,42.01268]
[1745224052356,8.7289,1649.3,1649.2,42.01268]
[1745224055160,6.171,1649.3,1649.2,42.01268]
[1745224055355,9.6805,1649.8,1649.7,1.21231]
[1745224055760,14.6805,1649.8,1649.7,1.21231]
[1745224056158,18.15677,1649.8,1649.7,1.21231]
[1745224056957,11.9445,1649.8,1649.7,1.21231]
[1745224057665,11.9445,1649.8,1649.4,7.73096]
[1745224057863,1.6894,1649.7,1649.6,1.21239]
[1745224058258,3.9534,1649.7,1649.6,1.21239]
[1745224060157,3.9534,1649.7,1649.3,4.71729]
[1745224060356,2.581,1649.6,1649.4,1.6858]
[1745224060556,5.6681,1649.5,1649.4,2.89833]
[1745224060761,6.4699,1649.5,1649.4,2.89833]
[1745224064259,6.4699,1649.5,1649.4,3.71893]
[1745224064658,3.905,1649.5,1649.4,3.71893]
[1745224065062,6.4909,1649.5,1649.4,2.89833]
[1745224067260,6.4909,1649.5,1649.4,1.21253]
[1745224067966,6.4909,1649.5,1649.4,2.87593]
[1745224073367,6.4909,1649.5,1649.4,6.08373]
[1745224074570,6.4909,1649.5,1649.4,2.87593]
[1745224082375,7.1118,1650.0,1649.4,6.6634]
[1745224082577,3.64569,1649.9,1649.8,1.21224]
[1745224083571,1.21227,1649.8,1649.7,1.21226]
[1745224083771,1.6187,1649.8,1649.7,1.21226]
[1745224086282,1.6187,1649.8,1649.7,2.86596]
[1745224087378,1.6187,1649.8,1649.7,1.21226]
[1745224097088,3.69535218,1650.2,1649.7,3.03079]
[1745224097387,8.50807145,1650.1,1650.0,1.21209]
[1745224097591,8.50807145,1650.1,1650.0,0.64894536]
[1745224097981,7.29599145,1650.1,1650.0,0.64894536]
[1745224099090,8.50801145,1650.1,1650.0,0.64894536]
[1745224099289,8.50801333,1650.1,1650.0,0.64894536]
[1745224099482,7.29599333,1650.1,1650.0,0.64894536]
[1745224099884,7.1941,1650.1,1650.0,0.64894536]
[1745224104196,8.40612,1650.1,1649.9,1.71480663]
[1745224104493,2.85129,1650.0,1649.9,0.00910663]
[1745224105093,2.85129,1650.0,1649.9,1.22122663]
[1745224105792,7.87739,1650.0,1649.6,1.21235]
[1745224106000,1.21231,1649.7,1649.6,1.21235]
[1745224106299,5.11531,1649.7,1649.6,1.21235]
[1745224106498,5.11531,1649.7,1649.6,1.21239]
[1745224106499,7.67737,1649.7,1649.6,1.21239]
[1745224107299,6.465,1649.7,1649.6,1.21239]
[1745224107502,7.67731,1649.7,1649.6,1.21239]
[1745224107797,6.465,1649.7,1649.6,1.21239]
[1745224108001,1.21239,1649.6,1649.5,1.22150663]
[1745224108295,1.6537,1649.6,1649.5,1.22150663]
[1745224108485,2.86609,1649.6,1649.5,0.00910663]
[1745224109998,6.07389,1649.6,1649.5,0.00910663]
[1745224110201,7.8217,1649.6,1649.5,0.00910663]
[1745224110398,9.03409,1649.6,1649.5,0.00910663]
[1745224110801,9.03409,1649.6,1649.5,1.22156663]
[1745224111100,6.77009,1649.6,1649.5,1.22156663]
[1745224111399,6.77009,1649.6,1649.5,2.09356663]
[1745224112001,6.77009,1649.6,1649.5,0.88110663]
[1745224112601,6.77009,1649.6,1649.5,0.00910663]
[1745224114897,3.0313,1649.5,1649.0,0.02293]
[1745224115090,3.2078,1649.3,1649.0,0.02293]
[1745224115304,6.74063,1649.2,1649.1,40.8]
[1745224115600,7.61913,1649.2,1649.1,40.8]
[1745224117000,8.42643,1649.2,1649.1,40.8]
[1745224117895,0.10556475,1649.7,1649.1,45.8]
[1745224118097,1.21247,1649.5,1649.3,1.21256]
[1745224118302,1.7004,1649.4,1649.3,2.81696]
[1745224118495,1.7004,1649.4,1649.3,1.6044]
[1745224118695,1.7004,1649.4,1649.3,2.81701]
[1745224127609,1.21252,1649.5,1649.3,1.6044]
[1745224127913,2.4912,1649.4,1649.3,2.81693]
[1745224131014,3.70373,1649.4,1649.3,2.81693]
[1745224132609,3.70373,1649.4,1649.3,1.6044]
[1745224132916,2.4912,1649.4,1649.2,0.8854]
[1745224133213,5.6438,1649.3,1649.2,2.09808]
[1745224133408,5.6438,1649.3,1649.2,3.84418]
[1745224133609,6.85641,1649.3,1649.2,3.84418]
[1745224133915,5.6438,1649.3,1649.2,3.84418]
[1745224134517,6.85641,1649.3,1649.2,2.6315]
[1745224135014,6.85641,1649.3,1649.2,0.8854]
[1745224135214,6.85641,1649.3,1649.2,2.09808]
[1745224136318,6.85641,1649.3,1649.2,3.80928]
[1745224136509,1.21268,1649.2,1649.1,44.0078]
[1745224136708,2.92808,1649.2,1649.1,42.01275]
[1745224136909,1.7154,1649.2,1649.1,42.01275]
[1745224137109,1.7154,1649.2,1649.1,43.72395]
[1745224137309,5.16464,1649.3,1649.2,1.21268]
[1745224137512,6.88004,1649.3,1649.2,2.92388]
[1745224137709,6.88004,1649.3,1649.2,1.7112]
[1745224139107,6.88004,1649.3,1649.2,2.92388]
[1745224139507,5.6674,1649.3,1649.2,2.92388]
[1745224139711,3.952,1649.3,1649.2,2.92388]
[1745224140115,5.16461,1649.3,1649.2,5.18788]
[1745224140323,5.5802,1649.3,1649.2,5.18788]
[1745224141221,5.5802,1649.3,1649.2,2.92388]
[1745224141819,6.79281,1649.3,1649.2,1.7112]
[1745224143120,1.21268,1649.2,1649.1,40.8]
[1745224143322,3.73478,1649.2,1649.1,40.8]
[1745224144336,3.73478,1649.2,1649.1,42.4118]
[1745224144832,2.5221,1649.2,1649.1,43.62455]
[1745224145229,3.73478,1649.2,1649.1,43.62455]
[1745224145429,2.02178,1649.2,1649.1,44.45205]
[1745224145628,3.952,1649.3,1649.1,44.45205]
[1745224145629,3.952,1649.3,1649.1,42.4118]
[1745224145935,3.69958,1649.2,1649.1,42.4118]
[1745224147435,3.69958,1649.2,1649.1,40.8]
[1745224148138,1.21275,1649.1,1649.0,2.27310663]
[1745224148437,2.83675,1649.1,1649.0,2.27310663]
[1745224149333,2.83675,1649.1,1649.0,0.00910663]
[1745224152541,2.93871117,1649.1,1649.0,0.00910663]
[1745224152737,2.83675,1649.1,1649.0,0.00910663]
[1745224153742,2.93871185,1649.1,1649.0,0.00910663]
[1745224154334,7.93871185,1649.1,1649.0,0.00910663]
[1745224155140,10.20272934,1649.1,1649.0,0.00910663]
[1745224157434,5.20272934,1649.1,1649.0,0.00910663]
[1745224158839,5.10075,1649.1,1649.0,0.00910663]
[1745224159042,5.20273061,1649.1,1649.0,0.00910663]
[1745224159441,11.18673061,1649.1,1649.0,0.00910663]
[1745224160144,11.1867322,1649.1,1649.0,0.00910663]
[1745224164042,14.3945322,1649.1,1649.0,0.00910663]
[1745224167756,11.1867322,1649.1,1649.0,0.00910663]
[1745224168048,14.3945322,1649.1,1649.0,0.00910663]
[1745224169849,14.39453001,1649.1,1649.0,0.00910663]
[1745224171055,1.21302,1648.9,1648.8,42.4153]
[1745224171246,8.45680001,1648.9,1648.8,42.4153]
[1745224171753,10.06760001,1648.9,1648.8,42.4153]
[1745224172251,12.33160001,1648.9,1648.8,42.4153]
[1745224172950,9.12380001,1648.9,1648.8,42.4153]
[1745224173251,12.33160164,1648.9,1648.8,42.4153]
[1745224174053,1.2131,1648.8,1648.7,0.00910663]
[1745224174256,1.21339,1648.4,1648.3,0.84105]
[1745224174456,1.21339,1648.4,1648.3,41.64105]
[1745224174457,5.14739,1648.4,1648.3,41.64105]
[1745224174752,5.24939996,1648.4,1648.3,41.64105]
[1745224175947,5.24939996,1648.4,1648.3,42.46455]
[1745224176255,5.2494043,1648.4,1648.3,42.46455]
[1745224176453,5.2494063,1648.4,1648.3,42.46455]
[1745224176651,5.2494063,1648.4,1648.3,41.64105]
[1745224176952,5.2494063,1648.4,1648.3,42.46455]
[1745224177153,5.2494063,1648.4,1648.3,44.06935]
[1745224177852,6.8521063,1648.4,1648.3,43.24585]
[1745224178655,6.8521063,1648.4,1648.3,41.64105]
[1745224178853,1.21346,1648.3,1648.2,0.00910663]
[1745224179051,6.2579763,1648.3,1648.2,0.00910663]
[1745224179557,6.25798097,1648.3,1648.2,0.00910663]
[1745224179756,6.36000183,1648.3,1648.2,0.00910663]
[1745224180858,1.21368,1648.0,1647.9,0.8114]
[1745224181057,8.35648,1648.0,1647.9,0.80446751]
[1745224181263,8.45849289,1648.0,1647.9,41.60446751]
[1745224182656,8.35648,1648.0,1647.9,40.8]
[1745224182861,8.45848904,1648.0,1647.9,40.8]
[1745224183958,8.45848904,1648.0,1647.9,43.3875]
[1745224184166,8.9521039,1648.0,1647.9,43.3875]
[1745224184359,8.9521039,1648.0,1647.9,44.2024]
[1745224186054,8.95210173,1648.0,1647.9,44.2024]
[1745224192169,11.21610173,1648.0,1647.9,44.2024]
[1745224193171,8.95210173,1648.0,1647.9,44.2024]
[1745224193870,5.74430173,1648.0,1647.9,44.2024]
[1745224194070,8.95210173,1648.0,1647.9,44.2024]
[1745224195262,11.21610173,1648.0,1647.9,44.2024]
[1745224195662,11.21610173,1648.0,1647.9,0.8679]
[1745224196666,1.21376,1647.9,1647.8,40.80910663]
[1745224196965,3.78846,1647.9,1647.8,40.80910663]
[1745224197271,6.98146191,1647.9,1647.8,40.80910663]
[1745224198767,6.98145911,1647.9,1647.8,40.80910663]
[1745224199067,4.71745911,1647.9,1647.8,40.80910663]
[1745224199271,4.71745911,1647.9,1647.8,42.51900663]
[1745224200474,4.71746004,1647.9,1647.8,42.51900663]
[1745224202174,0.10200004,1647.9,1647.8,42.51900663]
[1745224202373,5.12876,1647.9,1647.8,48.37770663]
[1745224203574,5.12876,1647.9,1647.8,43.37770663]
[1745224204066,3.915,1647.9,1647.8,43.37770663]
[1745224204265,3.915,1647.9,1647.8,44.59153663]
[1745224205474,0.0286,1648.0,1647.9,1.21376]
[1745224205672,3.9426,1648.0,1647.9,2.95656]
[1745224205874,3.914,1648.0,1647.9,7.95656]
[1745224206167,5.12768,1648.0,1647.9,7.95656]
[1745224208071,5.12768,1648.0,1647.9,2.95656]
[1745224208579,3.914,1648.0,1647.9,2.95656]
[1745224208769,3.914,1648.0,1647.9,7.95656]
[1745224210377,5.12768,1648.0,1647.9,10.22056]
[1745224211478,5.12768,1648.0,1647.9,4.0068]
[1745224211679,8.33548,1648.0,1647.9,4.0068]
[1745224212070,13.437477,1648.0,1647.9,2.264]
[1745224212372,1.21376,1647.9,1647.8,0.00910663]
[1745224212572,4.745657,1647.9,1647.8,0.00910663]
[1745224214377,3.531897,1647.9,1647.8,0.00910663]
[1745224214577,3.53188843,1647.9,1647.8,0.00910663]
[1745224214782,4.74564843,1647.9,1647.8,0.00910663]
[1745224216279,4.74564888,1647.9,1647.8,0.00910663]
[1745224217879,4.74564733,1647.9,1647.8,0.00910663]
[1745224219480,4.74564792,1647.9,1647.8,0.00910663]
[1745224222086,7.00964792,1647.9,1647.8,0.00910663]
[1745224223184,4.74564792,1647.9,1647.8,0.00910663]
[1745224228089,7.95344792,1647.9,1647.8,0.00910663]
[1745224228296,10.21744792,1647.9,1647.8,0.00910663]
[1745224229088,10.21745907,1647.9,1647.8,0.00910663]
[1745224231192,7.95345907,1647.9,1647.8,0.00910663]
[1745224233190,7.95345206,1647.9,1647.8,0.00910663]
[1745224233787,7.95344557,1647.9,1647.8,0.00910663]
[1745224235085,10.21744557,1647.9,1647.8,0.00910663]
[1745224238598,10.21741388,1647.9,1647.8,0.00910663]
[1745224240194,7.95341388,1647.9,1647.8,0.00910663]
[1745224242491,24.15784594,1647.9,1647.8,0.00116023]
[1745224242698,1.21398,1647.6,1647.5,40.8]
[1745224242894,1.21427,1647.2,1647.1,1.6474]
[1745224243098,5.12427,1647.2,1647.1,3.2983]
[1745224243291,3.91,1647.2,1646.7,7.09863]
[1745224243490,3.2078,1647.0,1646.8,3.2983]
[1745224243792,3.2078,1647.0,1646.9,42.4509]
[1745224243991,7.1178,1647.0,1646.9,42.4509]
[1745224244192,7.1178,1647.0,1646.9,44.7149]
[1745224246201,8.33222,1647.0,1646.9,44.7149]
[1745224251201,7.1178,1647.0,1646.9,45.92939]
[1745224251399,7.1188,1647.0,1646.9,50.92939]
[1745224251604,8.33322,1647.0,1646.9,45.92939]
[1745224252296,4.42222,1647.0,1646.9,45.92939]
[1745224252495,4.42222,1647.0,1646.9,50.92939]
[1745224252697,3.911,1647.0,1646.9,50.92939]
[1745224255899,5.12542,1647.0,1646.9,50.92939]
[1745224256098,5.12542,1647.0,1646.9,45.92939]
[1745224256999,3.911,1647.0,1646.9,45.92939]
[1745224258196,3.911,1647.0,1646.9,50.92939]
[1745224258602,3.911,1647.0,1646.9,56.81339]
[1745224258901,0.03770663,1647.1,1647.0,1.21442]
[1745224259100,0.03770663,1647.1,1647.0,7.01222]
[1745224259303,0.00910663,1647.1,1647.0,12.01222]
[1745224259502,0.00910663,1647.1,1647.0,52.81222]
[1745224259806,0.00910663,1647.1,1647.0,58.69622]
[1745224260106,0.00910663,1647.1,1647.0,60.96022]
[1745224262707,4.42185,1647.6,1647.0,59.7458]
[1745224262904,4.41491751,1647.6,1647.5,1.21405]
[1745224263099,3.911,1647.6,1647.5,1.21405]
[1745224263894,3.911,1647.6,1647.5,2.95155]
[1745224264207,0.00910663,1647.7,1647.5,2.95155]
[1745224264208,3.92010663,1647.7,1647.6,1.21398]
[1745224264406,3.92010663,1647.7,1647.6,3.78278]
[1745224265403,3.92010663,1647.7,1647.6,2.95148]
[1745224265603,3.92010663,1647.7,1647.6,42.01398]
[1745224265806,6.48330663,1647.7,1647.6,42.01398]
[1745224266411,7.69721663,1647.7,1647.6,42.01398]
[1745224266620,1.21405,1647.5,1647.4,1.21411]
[1745224266806,1.21419,1647.4,1647.3,1.21419]
[1745224267111,8.55429,1647.4,1647.3,42.01419]
[1745224267410,7.3401,1647.4,1647.3,42.01419]
[1745224268208,7.3401,1647.4,1647.3,44.27819]
[1745224270714,7.3401,1647.4,1647.3,43.064]
[1745224271014,8.6560771,1647.4,1647.3,43.064]
[1745224271211,8.6560771,1647.4,1647.3,40.8]
[1745224271515,7.4419471,1647.4,1647.3,42.0142]
[1745224271716,7.4419471,1647.4,1647.3,40.8]
[1745224271910,8.6560786,1647.4,1647.3,40.8]
[1745224273409,7.3401,1647.4,1647.3,40.8]
[1745224275206,7.3401,1647.4,1647.3,43.064]
[1745224276817,8.55423,1647.4,1647.3,43.064]
[1745224279308,7.3401,1647.4,1647.3,44.2782]
[1745224279519,1.7421,1647.4,1647.3,45.8813]
[1745224279722,5.6521,1647.4,1647.3,51.7653]
[1745224280324,3.91,1647.5,1647.4,1.21413]
[1745224280618,3.91,1647.5,1647.4,2.81723]
[1745224281211,3.91,1647.5,1647.4,5.08123]
[1745224282018,5.12405,1647.5,1647.4,5.08123]
[1745224282318,5.5113,1647.5,1647.4,5.08123]
[1745224282911,6.72535,1647.5,1647.4,5.08123]
[1745224284120,5.5113,1647.5,1647.4,5.08123]
[1745224285614,3.91,1647.5,1647.4,19.17303]
[1745224287012,3.91,1647.5,1647.4,14.17303]
[1745224287719,5.64300663,1647.7,1647.6,1.21398]
[1745224290326,5.64300663,1647.7,1647.6,2.92908]
[1745224294222,3.91910663,1647.7,1647.6,2.92908]
[1745224294520,3.91910663,1647.7,1647.6,9.68328]
[1745224295423,0.00910663,1647.7,1647.6,9.68328]
[1745224296621,3.909,1648.0,1647.9,1.21376]
[1745224297320,3.909,1648.0,1647.9,3.47776]
[1745224297521,3.909,1648.0,1647.9,5.94256]
[1745224298122,3.909,1648.0,1647.9,3.67856]
[1745224299329,3.909,1648.0,1647.9,5.94256]
[1745224299923,3.909,1648.0,1647.9,46.74256]
[1745224300229,0.00910663,1648.1,1648.0,1.21368]
[1745224300431,0.00910663,1648.1,1648.0,2.86108]
[1745224300931,0.00910663,1648.1,1648.0,43.66108]
[1745224301230,0.00910663,1648.1,1648.0,45.92508]
[1745224303231,0.00910663,1648.1,1648.0,51.80908]
[1745224304027,3.909,1648.2,1648.1,1.21361]
[1745224304228,3.909,1648.2,1648.1,3.80241]
[1745224304626,3.909,1648.2,1648.1,44.60241]
[1745224306535,1.64440663,1648.3,1648.2,1.21354]
[1745224307138,1.64440663,1648.3,1648.2,42.01354]
[1745224308229,2.44990663,1648.3,1648.2,42.01354]
[1745224309035,2.44990663,1648.3,1648.2,47.89754]
[1745224314942,2.44990663,1648.3,1648.2,42.01354]
[1745224316241,2.44990663,1648.3,1648.2,44.27754]
[1745224316434,2.44990663,1648.3,1648.2,45.93754]
[1745224317734,3.908,1648.4,1648.3,1.21346]
[1745224317939,3.908,1648.4,1648.3,9.60556]
[1745224318144,3.908,1648.4,1648.3,11.86956]
[1745224318334,3.908,1648.4,1648.3,52.66956]
[1745224320036,2.5521,1648.4,1648.3,52.66956]
[1745224320234,2.5521,1648.4,1648.3,50.40556]
[1745224323136,2.5521,1648.4,1648.3,52.66956]
[1745224324337,2.5521,1648.4,1648.3,50.40556]
[1745224324639,2.5521,1648.4,1648.3,47.89746]
[1745224325042,5.7599,1648.4,1648.3,47.89746]
[1745224326645,6.97329,1648.4,1648.3,42.01346]
[1745224326848,5.7599,1648.4,1648.3,42.01346]
[1745224327050,10.7599,1648.4,1648.3,40.8]
[1745224327346,3.03375,1648.3,1647.9,1.21374]
[1745224327542,4.4215,1648.0,1647.9,1.21374]
[1745224327743,1.21366,1648.1,1648.0,1.21368]
[1745224327945,3.78496,1648.1,1648.0,1.21368]
[1745224328146,7.5713,1648.1,1648.0,1.21368]
[1745224330741,8.78491,1648.1,1647.9,44.2777]
[1745224331040,1.679,1648.0,1647.9,44.2777]
[1745224331241,1.679,1648.0,1647.9,42.0137]
[1745224332149,1.679,1648.0,1647.9,44.2777]
[1745224332644,11.10048,1648.0,1647.9,43.064]
[1745224332843,11.20231255,1648.0,1647.9,2.264]
[1745224333149,1.21376,1647.9,1647.8,0.00910663]
[1745224333349,7.76519255,1647.9,1647.8,0.00910663]
[1745224333535,12.76519255,1647.9,1647.8,0.00910663]
[1745224333846,12.76517651,1647.9,1647.8,40.80910663]
[1745224335547,1.21415,1647.4,1647.2,1.21422]
[1745224335747,8.32995,1647.4,1647.2,1.21422]
[1745224336048,4.56582,1647.3,1647.1,7.98208]
[1745224336248,1.6131,1647.2,1647.1,2.09114751]
[1745224336445,1.6131,1647.2,1647.1,1.21428]
[1745224337351,6.03517,1647.2,1647.1,40.8]
[1745224338055,11.03517,1647.2,1647.1,40.8]
[1745224338357,11.13694727,1647.2,1647.1,40.8]
[1745224338654,11.13694467,1647.2,1647.1,40.8]
[1745224338854,6.13694467,1647.2,1647.1,40.8]
[1745224339040,4.8209,1647.2,1647.1,40.8]
[1745224339245,8.7299,1647.2,1647.1,42.01435]
[1745224339451,8.7299,1647.2,1647.1,43.62135]
[1745224340648,7.1168,1647.2,1647.1,43.62135]
[1745224340853,3.909,1647.2,1647.1,43.62135]
[1745224341754,5.627,1647.2,1647.1,43.62135]
[1745224346747,6.84127,1647.2,1647.1,43.62135]
[1745224347463,10.04907,1647.2,1647.1,42.01435]
[1745224347657,10.04907,1647.2,1647.1,40.8]
[1745224349062,8.8348,1647.2,1647.1,42.01435]
[1745224350958,3.909,1647.2,1647.1,42.01435]
[1745224351160,3.909,1647.2,1647.1,44.59135]
[1745224354157,5.12327,1647.2,1647.1,44.59135]
[1745224354464,8.33107,1647.2,1647.1,40.8]
[1745224354663,10.04767,1647.2,1647.1,40.8]
[1745224355565,10.04767,1647.2,1647.1,42.01435]
[1745224355954,8.8334,1647.2,1647.1,42.01435]
[1745224356366,10.5192,1647.2,1647.1,42.01435]
[1745224356967,9.6402,1647.2,1647.1,43.67375]
[1745224357366,3.909,1647.2,1647.1,43.67375]
[1745224357669,3.909,1647.2,1647.1,44.54555]
[1745224360871,5.5848,1647.2,1647.1,44.54555]
[1745224362073,6.79907,1647.2,1647.1,44.54555]
[1745224362269,6.79907,1647.2,1647.1,43.67375]
[1745224362466,5.5848,1647.2,1647.1,43.67375]
[1745224365264,3.909,1647.2,1647.1,43.67375]
[1745224370077,5.6478,1647.2,1647.1,43.67375]
[1745224370375,6.4843,1647.2,1647.1,43.67375]
[1745224370675,7.69857,1647.2,1647.1,43.67375]
[1745224370975,6.4843,1647.2,1647.1,43.67375]
[1745224372984,5.6478,1647.2,1647.1,43.67375]
[1745224373184,3.909,1647.2,1647.1,43.67375]
[1745224374486,5.6157,1647.2,1647.1,43.67375]
[1745224376484,6.82997,1647.2,1647.1,42.01435]
[1745224376685,6.4143,1647.2,1647.1,42.01435]
[1745224376882,10.83637,1647.2,1647.1,42.01435]
[1745224377888,9.6221,1647.2,1647.1,42.01435]
[1745224379084,6.4143,1647.2,1647.1,42.01435]
[1745224379288,10.83637,1647.2,1647.1,42.01435]
[1745224380090,9.6221,1647.2,1647.1,42.01435]
[1745224380387,5.6157,1647.2,1647.1,42.01435]
[1745224380588,5.6157,1647.2,1647.1,43.71955]
[1745224383193,3.909,1647.2,1647.1,43.71955]
[1745224383382,3.909,1647.2,1647.1,44.60395]
[1745224385096,3.2078,1647.6,1647.2,1.21427]
[1745224385295,8.32489751,1647.6,1647.5,1.21405]
[1745224385782,8.32489751,1647.6,1647.5,42.01405]
[1745224386291,8.32489751,1647.6,1647.5,44.27805]
[1745224387095,8.32489751,1647.6,1647.5,42.01405]
[1745224387388,8.32489751,1647.6,1647.5,40.8]
[1745224387985,13.32489751,1647.6,1647.5,40.8]
[1745224388182,1.21427,1647.2,1647.1,1.21432]
[1745224388387,3.91,1647.2,1647.1,1.20738751]
[1745224388988,5.12427,1647.2,1647.1,1.20738751]
[1745224389191,3.91,1647.2,1647.1,42.00738751]
[1745224390386,3.91,1647.2,1647.1,45.32848751]
[1745224393296,1.21404,1647.6,1647.1,50.0051]
[1745224393502,1.21405,1647.5,1647.4,1.21407]
[1745224394094,1.21405,1647.5,1647.4,44.27807]
[1745224394295,5.12405,1647.6,1647.5,1.21405]
[1745224394703,5.12405,1647.6,1647.4,43.064]
[1745224395099,5.12405,1647.6,1647.5,1.21405]
[1745224395300,5.12405,1647.6,1647.4,43.064]
[1745224395600,5.12405,1647.6,1647.5,1.21405]
[1745224395803,5.12405,1647.6,1647.4,44.27806]
[1745224396104,5.12405,1647.6,1647.5,1.21405]
[1745224396305,5.6571,1647.6,1647.5,3.47805]
[1745224397401,3.21690663,1647.7,1647.6,1.21398]
[1745224397707,0.00910663,1647.7,1647.6,1.21398]
[1745224398001,0.00910663,1647.7,1647.6,2.85408]
[1745224398204,14.14130956,1648.1,1647.6,12.5241]
[1745224398404,3.91,1648.0,1647.9,1.21376]
[1745224398605,5.5682,1648.0,1647.9,1.21376]
[1745224399308,5.5682,1648.0,1647.9,3.47776]
[1745224400411,6.78188,1648.0,1647.9,3.47776]
[1745224400610,5.5682,1648.0,1647.9,3.47776]
[1745224403113,5.5682,1648.0,1647.9,5.24766]
[1745224403608,3.91,1648.0,1647.9,5.24766]
[1745224403812,3.93010662,1648.1,1648.0,1.21368]
[1745224404109,95.8088,1648.5,1648.4,1.21339]
[1745224404309,100.5294,1648.5,1648.4,1.21339]
[1745224404810,100.5294,1648.5,1648.4,42.01339]
[1745224405415,102.2122,1648.5,1648.4,42.01339]
[1745224406412,98.2048,1648.5,1648.4,42.01339]
[1745224406610,98.2038,1648.5,1648.4,43.62709]
[1745224407217,102.62492,1648.5,1648.4,40.8]
[1745224407417,102.72681702,1648.5,1648.4,40.8]
[1745224407619,102.72681702,1648.5,1648.4,42.01339]
[1745224408213,101.51349702,1648.5,1648.4,42.01339]
[1745224408616,101.4116,1648.5,1648.4,42.01339]
[1745224408921,102.7267827,1648.5,1648.4,40.8]
[1745224410216,102.62492,1648.5,1648.4,40.8]
[1745224410421,102.7267788,1648.5,1648.4,40.8]
[1745224413416,102.62492,1648.5,1648.4,40.8]
[1745224413720,1.21354,1648.2,1648.0,6.6885]
[1745224413915,10.08861,1648.1,1647.9,1.21372]
[1745224414111,1.21376,1647.9,1647.8,9.52031663]
[1745224414309,1.21376,1647.9,1647.8,2.02351663]
[1745224414310,3.2078,1647.9,1647.8,2.02351663]
[1745224414507,4.8292,1647.9,1647.8,2.02351663]